bitfinex-derivatives/quotes_SOLF0:USTF0_20260210
["timestamp","ask_amount","ask_price","bid_price","bid_amount"]
[1770722308128,3.68721029,84.283,84.247,4.04320812]
[1770722308328,9.10394734,84.282,84.247,4.04320812]
[1770722308532,9.10394734,84.281,84.247,4.04320812]
[1770722308727,3.68721029,84.279,84.236,4.04320812]
[1770722308932,3.68721029,84.277,84.236,4.04320812]
[1770722309134,12.78965243,84.276,84.236,4.04320812]
[1770722309334,3.68721029,84.276,84.236,4.04320812]
[1770722309838,3.68721029,84.276,84.237,10.6949]
[1770722310436,3.68721029,84.269,84.211,4.04320812]
[1770722310739,9.09973548,84.268,84.211,4.04320812]
[1770722310934,9.09973548,84.267,84.211,4.04320812]
[1770722311135,9.09973548,84.266,84.211,4.04320812]
[1770722311331,9.09973548,84.265,84.22,3.68980891]
[1770722311536,9.09973548,84.264,84.221,4.04320812]
[1770722311738,10.6912,84.267,84.229,4.04320812]
[1770722311940,9.10156934,84.266,84.229,4.04320812]
[1770722312239,9.10156934,84.265,84.229,4.04320812]
[1770722312436,9.10156934,84.264,84.229,4.04320812]
[1770722312638,3.68721029,84.269,84.229,4.04320812]
[1770722313238,3.68721029,84.269,84.232,4.04320812]
[1770722313639,10.6898,84.278,84.232,4.04320812]
[1770722313841,9.10238625,84.277,84.232,4.04320812]
[1770722314143,9.10238625,84.276,84.232,4.04320812]
[1770722314344,9.10238625,84.275,84.232,4.04320812]
[1770722314540,9.10238625,84.274,84.232,4.04320812]
[1770722314842,9.10238625,84.273,84.234,4.04320812]
[1770722315044,14.37701029,84.278,84.234,4.04320812]
[1770722315239,9.10171667,84.277,84.234,4.04320812]
[1770722315434,9.10171667,84.276,84.234,4.04320812]
[1770722315635,9.10171667,84.275,84.234,4.04320812]
[1770722315838,9.10328272,84.274,84.234,4.04320812]
[1770722316036,14.37751029,84.275,84.234,4.04320812]
[1770722316237,9.10815393,84.274,84.234,4.04320812]
[1770722316437,3.68721029,84.274,84.234,4.04320812]
[1770722317443,3.68721029,84.274,84.235,10.6952]
[1770722317645,3.68721029,84.274,84.235,14.73840812]
[1770722318241,3.68721029,84.272,84.235,4.04320812]
[1770722319946,3.68721029,84.272,84.236,10.695]
[1770722320942,3.68721029,84.272,84.238,10.6948]
[1770722321248,3.68721029,84.272,84.239,4.04320812]
[1770722321644,3.68721029,84.272,84.244,10.6941]
[1770722325251,3.68721029,84.288,84.244,10.6941]
[1770722325452,10.6891,84.284,84.244,10.6941]
[1770722325649,3.68721029,84.282,84.244,10.6941]
[1770722325857,3.68721029,84.28,84.244,10.6941]
[1770722326049,3.68721029,84.278,84.244,10.6941]
[1770722326253,9.08368517,84.277,84.244,10.6941]
[1770722326455,3.68721029,84.276,84.244,10.6941]
[1770722327556,3.68721029,84.276,84.244,14.73730812]
[1770722327754,3.68721029,84.276,84.245,4.04320812]
[1770722332563,3.68721029,84.276,84.246,10.6938]
[1770722334765,4.09194628,84.289,84.245,4.04320812]
[1770722334964,4.09194628,84.297,84.251,3.81759383]
[1770722336862,4.09194628,84.297,84.25,3.68766792]
[1770722336863,4.09194628,84.297,84.266,14.50889383]
[1770722341662,4.09194628,84.297,84.271,10.6906]
[1770722342667,4.09194628,84.307,84.28,10.6895]
[1770722343673,4.09194628,84.307,84.276,3.81759383]
[1770722348971,4.09194628,84.311,84.276,3.81759383]
[1770722349278,4.09194628,84.311,84.278,3.81759383]
[1770722350676,4.09194628,84.299,84.251,3.81759383]
[1770722351578,4.09194628,84.299,84.24,21.3892]
[1770722351579,4.09194628,84.299,84.269,10.6908]
[1770722351781,4.09194628,84.289,84.241,3.81759383]
[1770722352571,4.09194628,84.279,84.241,3.81759383]
[1770722352775,4.09194628,84.279,84.222,3.81759383]
[1770722352982,4.09194628,84.279,84.231,3.81759383]
[1770722353378,4.09194628,84.289,84.231,3.81759383]
[1770722353579,4.09194628,84.289,84.241,3.81759383]
[1770722353779,4.09194628,84.289,84.247,3.81759383]
[1770722354484,3.68766792,84.3,84.251,3.81759383]
[1770722355481,3.68766792,84.31,84.271,3.81759383]
[1770722356577,3.68766792,84.31,84.273,10.6904]
[1770722357282,3.68766792,84.31,84.274,3.81759383]
[1770722358480,3.68766792,84.31,84.276,10.69]
[1770722360585,3.68766792,84.32,84.28,3.72346126]
[1770722360786,9.05954822,84.319,84.28,3.72346126]
[1770722360987,3.68766792,84.32,84.28,3.72346126]
[1770722360988,3.77697719,84.317,84.28,3.72346126]
[1770722361786,3.77697719,84.317,84.284,10.6889]
[1770722362186,3.77697719,84.317,84.248,94.7]
[1770722362187,3.77697719,84.329,84.285,3.6868556]
[1770722362483,9.05909112,84.328,84.285,3.6868556]
[1770722362790,12.83606831,84.327,84.285,3.6868556]
[1770722362988,9.05909112,84.326,84.285,3.6868556]
[1770722363189,9.05909112,84.325,84.285,3.6868556]
[1770722363389,9.05909112,84.324,84.285,3.6868556]
[1770722363585,9.05909112,84.323,84.285,3.6868556]
[1770722363785,3.77697719,84.327,84.289,3.6868556]
[1770722363985,9.05857451,84.326,84.289,3.6868556]
[1770722364188,9.05857451,84.325,84.289,3.6868556]
[1770722364385,9.05857451,84.324,84.289,3.6868556]
[1770722364586,9.05857451,84.323,84.289,3.6868556]
[1770722364891,3.77697719,84.327,84.289,3.6868556]
[1770722365089,9.05816265,84.326,84.289,3.6868556]
[1770722365288,9.05816265,84.325,84.289,3.6868556]
[1770722365489,9.05816265,84.324,84.289,3.6868556]
[1770722365688,9.05816265,84.323,84.289,3.6868556]
[1770722365889,3.77697719,84.327,84.289,3.6868556]
[1770722366090,9.05907931,84.326,84.289,3.6868556]
[1770722366391,9.05907931,84.325,84.289,3.6868556]
[1770722366592,9.05907931,84.324,84.289,3.6868556]
[1770722366790,9.05907931,84.323,84.289,3.6868556]
[1770722366978,3.77697719,84.327,84.289,3.6868556]
[1770722368190,3.77697719,84.325,84.289,3.6868556]
[1770722374901,3.77697719,84.325,84.292,10.688]
[1770722375592,3.77697719,84.325,84.292,14.3748556]
[1770722375991,3.77697719,84.325,84.293,3.6868556]
[1770722378098,3.77697719,84.336,84.297,3.6868556]
[1770722378799,3.77697719,84.357,84.313,3.6868556]
[1770722379101,3.68525173,84.37,84.313,3.6868556]
[1770722379102,3.77697719,84.355,84.313,3.6868556]
[1770722379401,9.06363504,84.354,84.313,3.6868556]
[1770722379602,9.06363504,84.353,84.313,3.6868556]
[1770722379902,9.06363504,84.352,84.316,3.6868556]
[1770722380098,9.06363504,84.351,84.316,3.6868556]
[1770722380303,3.77697719,84.355,84.316,3.6868556]
[1770722380500,3.77697719,84.353,84.296,3.6868556]
[1770722380697,3.77697719,84.339,84.296,3.6868556]
[1770722380891,3.77697719,84.329,84.281,3.6868556]
[1770722381697,3.77697719,84.329,84.293,10.6879]
[1770722382107,3.77697719,84.327,84.281,3.6868556]
[1770722382402,3.77697719,84.325,84.281,3.6868556]
[1770722382599,3.77697719,84.323,84.281,3.6868556]
[1770722382797,3.77697719,84.321,84.281,3.6868556]
[1770722383000,9.0623208,84.322,84.275,94.68]
[1770722383001,3.77697719,84.319,84.275,94.68]
[1770722383393,3.77697719,84.299,84.246,3.6868556]
[1770722383597,3.77697719,84.297,84.251,10.6931]
[1770722384203,3.77697719,84.289,84.251,10.6931]
[1770722387308,3.77697719,84.299,84.254,3.6868556]
[1770722387508,3.77697719,84.298,84.254,3.6868556]
[1770722388708,3.77697719,84.298,84.255,10.6926]
[1770722389700,3.92957623,84.296,84.255,10.6926]
[1770722389909,3.92957623,84.294,84.255,10.6926]
[1770722394714,3.92957623,84.294,84.261,10.6919]
[1770722395414,3.92957623,84.294,84.264,10.6915]
[1770722395714,3.92957623,84.294,84.262,3.99894348]
[1770722397307,3.92957623,84.305,84.262,3.99894348]
[1770722397609,9.10994814,84.304,84.262,3.99894348]
[1770722397913,3.92957623,84.305,84.262,3.99894348]
[1770722398213,9.11049505,84.304,84.262,3.99894348]
[1770722398512,3.92957623,84.305,84.262,3.99894348]
[1770722398711,9.11175192,84.304,84.265,3.99894348]
[1770722398913,3.92957623,84.305,84.265,3.99894348]
[1770722399108,9.11177339,84.304,84.265,3.99894348]
[1770722399308,3.92957623,84.305,84.265,3.99894348]
[1770722399512,9.1126709,84.304,84.265,3.99894348]
[1770722399812,3.92957623,84.305,84.265,3.99894348]
[1770722400013,9.1126709,84.304,84.265,3.99894348]
[1770722400210,9.11263804,84.303,84.265,3.99894348]
[1770722400412,3.92957623,84.305,84.265,3.99894348]
[1770722400711,9.11332894,84.304,84.265,3.99894348]
[1770722401013,3.92957623,84.289,84.254,3.99894348]
[1770722401407,3.92957623,84.289,84.237,3.99894348]
[1770722402410,3.92957623,84.289,84.241,3.99894348]
[1770722402617,3.92957623,84.289,84.255,10.6927]
[1770722404413,3.92957623,84.289,84.255,14.69164348]
[1770722404711,10.6866,84.304,84.263,3.99894348]
[1770722405712,10.6866,84.304,84.267,3.99894348]
[1770722408227,18.30062796,84.31,84.267,3.99894348]
[1770722408426,9.11075136,84.309,84.269,3.99894348]
[1770722408726,18.30062796,84.31,84.269,3.99894348]
[1770722409025,9.11075135,84.309,84.269,3.99894348]
[1770722409217,18.30062796,84.31,84.269,3.99894348]
[1770722409425,9.11096954,84.309,84.269,3.99894348]
[1770722409625,18.30062796,84.31,84.269,3.99894348]
[1770722409825,9.11147964,84.309,84.269,3.99894348]
[1770722410025,18.30062796,84.31,84.269,3.99894348]
[1770722410229,9.11147967,84.309,84.269,3.99894348]
[1770722410430,7.61482796,84.31,84.271,3.99894348]
[1770722410634,3.92957623,84.31,84.271,3.99894348]
[1770722411037,3.92957623,84.31,84.273,14.68934348]
[1770722411631,3.92957623,84.309,84.273,14.68934348]
[1770722412236,3.92957623,84.299,84.262,10.6917]
[1770722412435,3.92957623,84.31,84.263,3.99894348]
[1770722412730,3.92957623,84.31,84.274,3.99894348]
[1770722413842,3.92957623,84.31,84.276,3.99894348]
[1770722415033,3.92957623,84.31,84.275,10.6901]
[1770722416337,10.6863,84.306,84.265,3.99894348]
[1770722416741,3.92957623,84.305,84.265,3.99894348]
[1770722416941,3.92957623,84.303,84.265,3.99894348]
[1770722419645,3.92957623,84.303,84.266,10.6913]
[1770722420245,9.0959536,84.302,84.266,10.6913]
[1770722420543,3.92957623,84.303,84.266,14.72582639]
[1770722420742,9.0959536,84.302,84.266,14.72582639]
[1770722420942,3.92957623,84.303,84.266,14.72582639]
[1770722421144,9.09595307,84.302,84.266,14.72582639]
[1770722421346,3.92957623,84.303,84.266,14.72582639]
[1770722421547,9.0971027,84.302,84.266,14.72582639]
[1770722421750,3.92957623,84.303,84.266,14.72582639]
[1770722421949,9.0971027,84.302,84.266,14.72582639]
[1770722422248,9.09835943,84.301,84.266,14.72582639]
[1770722422450,3.92957623,84.303,84.266,14.72582639]
[1770722422752,9.0983597,84.302,84.267,3.9736912]
[1770722423050,9.0983597,84.301,84.267,3.9736912]
[1770722423253,9.1010092,84.3,84.267,3.9736912]
[1770722423449,10.6869,84.302,84.267,3.9736912]
[1770722423647,9.1010092,84.301,84.267,3.9736912]
[1770722423954,9.1010092,84.3,84.267,3.9736912]
[1770722424146,10.6869,84.302,84.267,3.9736912]
[1770722424345,9.10791234,84.301,84.267,3.9736912]
[1770722424542,9.10791234,84.3,84.267,3.9736912]
[1770722424743,9.10791234,84.299,84.267,3.9736912]
[1770722425053,9.10791234,84.298,84.267,3.9736912]
[1770722425252,9.11690612,84.297,84.267,3.9736912]
[1770722425453,9.11690612,84.296,84.267,3.9736912]
[1770722425642,9.11690612,84.295,84.267,3.9736912]
[1770722425846,9.11690612,84.294,84.267,3.9736912]
[1770722426055,10.6869,84.302,84.267,3.9736912]
[1770722426257,9.11690612,84.301,84.267,3.9736912]
[1770722426452,9.11690612,84.3,84.267,3.9736912]
[1770722426655,9.11690612,84.299,84.267,3.9736912]
[1770722426849,9.11690612,84.298,84.267,3.9736912]
[1770722427145,9.11690612,84.297,84.267,3.9736912]
[1770722427344,9.11690612,84.296,84.267,3.9736912]
[1770722427551,10.6869,84.302,84.267,3.9736912]
[1770722427749,9.12319785,84.301,84.269,3.9736912]
[1770722427954,4.07728739,84.31,84.271,3.9736912]
[1770722428149,9.12216768,84.309,84.271,3.9736912]
[1770722428455,4.07728739,84.307,84.271,3.9736912]
[1770722428654,4.07728739,84.305,84.271,3.9736912]
[1770722428958,14.72744331,84.335,84.239,21.3894]
[1770722428959,4.07728739,84.303,84.268,10.691]
[1770722429158,4.07728739,84.301,84.268,10.691]
[1770722429459,13.20090746,84.3,84.268,10.691]
[1770722429659,9.12362007,84.299,84.268,10.691]
[1770722429958,9.12362007,84.298,84.268,10.691]
[1770722430161,9.12362007,84.297,84.272,10.6905]
[1770722430349,9.12362007,84.296,84.272,14.6641912]
[1770722430553,4.07728739,84.31,84.272,14.6641912]
[1770722430753,9.1245759,84.309,84.272,14.6641912]
[1770722430961,9.1245759,84.308,84.272,14.6641912]
[1770722431159,4.07728739,84.306,84.272,14.6641912]
[1770722431461,9.1245759,84.305,84.272,14.6641912]
[1770722431650,9.1245759,84.304,84.272,14.6641912]
[1770722431850,9.1245759,84.303,84.272,14.6641912]
[1770722432052,9.1245759,84.302,84.272,14.6641912]
[1770722432248,9.1245759,84.301,84.272,14.6641912]
[1770722432455,9.1245759,84.3,84.272,14.6641912]
[1770722432663,9.1245759,84.299,84.272,14.6641912]
[1770722432861,9.1245759,84.298,84.272,14.6641912]
[1770722433162,9.1245759,84.297,84.272,14.6641912]
[1770722433362,9.1245759,84.296,84.272,14.6641912]
[1770722433565,4.07728739,84.306,84.272,3.9736912]
[1770722433763,9.12501352,84.305,84.272,3.9736912]
[1770722433966,9.12501352,84.304,84.272,3.9736912]
[1770722434162,9.12501352,84.303,84.272,3.9736912]
[1770722434361,9.12501352,84.302,84.272,3.9736912]
[1770722434563,9.12501352,84.301,84.272,3.9736912]
[1770722434764,4.07728739,84.306,84.273,10.6904]
[1770722434968,9.12425689,84.305,84.273,10.6904]
[1770722435170,9.12425689,84.304,84.273,10.6904]
[1770722435355,4.07728739,84.302,84.272,3.9736912]
[1770722435571,9.12425689,84.301,84.272,3.9736912]
[1770722435764,9.12425689,84.3,84.272,3.9736912]
[1770722435959,4.07728739,84.302,84.272,3.9736912]
[1770722436161,9.12477632,84.301,84.272,3.9736912]
[1770722436361,9.12477632,84.3,84.272,3.9736912]
[1770722436666,4.07728739,84.302,84.272,3.9736912]
[1770722436971,9.12537936,84.301,84.272,3.9736912]
[1770722437154,9.12537936,84.3,84.272,3.9736912]
[1770722437361,4.07728739,84.302,84.272,3.9736912]
[1770722437565,9.12579691,84.301,84.272,3.9736912]
[1770722437765,9.12579691,84.3,84.272,3.9736912]
[1770722437968,9.12579691,84.299,84.272,3.9736912]
[1770722438268,4.07728739,84.302,84.272,3.9736912]
[1770722438458,9.12614933,84.301,84.272,3.9736912]
[1770722438661,9.12614933,84.3,84.272,3.9736912]
[1770722438864,9.12614933,84.299,84.272,3.9736912]
[1770722439064,4.07728739,84.302,84.272,3.9736912]
[1770722439368,9.12614933,84.301,84.272,3.9736912]
[1770722439564,4.07728739,84.299,84.268,3.9736912]
[1770722440868,4.07728739,84.299,84.27,14.6643912]
[1770722441268,9.12735745,84.298,84.26,3.9736912]
[1770722441464,4.07728739,84.299,84.26,3.9736912]
[1770722441669,9.12736705,84.298,84.26,3.9736912]
[1770722441871,4.07728739,84.299,84.26,3.9736912]
[1770722442866,4.07728739,84.299,84.213,35.65]
[1770722442867,4.07728739,84.297,84.255,3.9736912]
[1770722443073,4.07728739,84.295,84.255,3.9736912]
[1770722443271,4.07728739,84.293,84.255,3.9736912]
[1770722443470,9.12757101,84.292,84.255,3.9736912]
[1770722443671,9.12757101,84.291,84.255,3.9736912]
[1770722443972,9.12757101,84.29,84.255,3.9736912]
[1770722444267,4.07728739,84.293,84.257,3.9736912]
[1770722444475,10.6867,84.303,84.257,3.9736912]
[1770722444773,9.12753872,84.302,84.257,3.9736912]
[1770722445068,4.07728739,84.3,84.257,3.9736912]
[1770722445274,13.20482611,84.299,84.257,3.9736912]
[1770722445462,9.12753872,84.298,84.257,3.9736912]
[1770722445669,9.12753872,84.297,84.266,10.6912]
[1770722445869,9.12753872,84.296,84.266,10.6912]
[1770722446166,9.12753872,84.295,84.266,10.6912]
[1770722446471,9.12753872,84.294,84.266,10.6912]
[1770722446672,9.12753872,84.293,84.266,10.6912]
[1770722446974,4.07728739,84.299,84.266,10.6912]
[1770722447273,9.1129716,84.298,84.266,10.6912]
[1770722447473,9.1129716,84.297,84.266,10.6912]
[1770722447771,9.1129716,84.296,84.269,3.9736912]
[1770722447968,4.07728739,84.294,84.268,10.691]
[1770722448372,9.11583513,84.293,84.268,10.691]
[1770722448573,9.11583513,84.292,84.268,10.691]
[1770722448774,9.11583513,84.291,84.268,10.691]
[1770722449076,4.07728739,84.294,84.268,10.691]
[1770722449264,9.11583513,84.293,84.268,10.691]
[1770722449464,9.11583513,84.292,84.268,10.691]
[1770722449668,9.11583513,84.291,84.268,10.691]
[1770722449868,4.07728739,84.294,84.268,10.691]
[1770722450070,9.11737446,84.293,84.268,10.691]
[1770722450374,3.93898642,84.291,84.26,10.692]
[1770722450581,3.93898642,84.289,84.235,3.68436176]
[1770722450876,35.65,84.32,84.161,166.5163]
[1770722450877,3.93898642,84.269,84.211,3.68436176]
[1770722451168,3.93898642,84.267,84.211,3.68436176]
[1770722451375,3.93898642,84.265,84.211,3.68436176]
[1770722451575,3.93898642,84.263,84.211,3.68436176]
[1770722451777,3.93898642,84.261,84.211,3.68436176]
[1770722451976,3.93898642,84.259,84.211,3.68436176]
[1770722452178,3.93898642,84.257,84.211,3.68436176]
[1770722452874,3.93898642,84.257,84.232,10.6955]
[1770722453766,3.93898642,84.269,84.232,10.6955]
[1770722453966,9.09516744,84.268,84.232,10.6955]
[1770722454277,9.09516744,84.267,84.232,10.6955]
[1770722454473,9.09516744,84.266,84.232,10.6955]
[1770722454673,9.09516744,84.265,84.232,10.6955]
[1770722454874,9.09516744,84.264,84.232,10.6955]
[1770722455173,3.93898642,84.269,84.232,10.6955]
[1770722455373,3.93898642,84.267,84.232,10.6955]
[1770722455574,3.93898642,84.265,84.232,10.6955]
[1770722457573,3.93898642,84.265,84.231,3.68436176]
[1770722459067,3.93898642,84.265,84.225,10.6965]
[1770722459267,3.93898642,84.259,84.225,10.6965]
[1770722459873,3.93898642,84.255,84.192,3.68436176]
[1770722460075,3.93898642,84.239,84.192,3.68436176]
[1770722460469,3.93898642,84.229,84.192,3.68436176]
[1770722461784,3.93898642,84.229,84.193,14.38486176]
[1770722462585,3.93898642,84.229,84.193,3.68436176]
[1770722462785,3.93898642,84.229,84.186,10.7014]
[1770722462786,3.93898642,84.219,84.178,3.68436176]
[1770722463487,3.93898642,84.209,84.168,10.7037]
[1770722466488,3.93898642,84.209,84.168,14.38806176]
[1770722466890,3.93898642,84.209,84.169,3.68436176]
[1770722467591,3.93898642,84.209,84.17,14.38786176]
[1770722467785,3.93898642,84.209,84.171,3.68436176]
[1770722468789,3.93898642,84.219,84.173,3.68436176]
[1770722469681,3.93898642,84.219,84.176,10.7027]
[1770722469880,3.93898642,84.219,84.177,3.68436176]
[1770722471297,3.93898642,84.219,84.186,3.68436176]
[1770722471497,3.69171318,84.23,84.186,3.68436176]
[1770722471890,3.93898642,84.229,84.186,3.68436176]
[1770722472690,3.93898642,84.229,84.187,10.7013]
[1770722473996,3.93898642,84.229,84.188,3.68436176]
[1770722474596,3.93898642,84.229,84.191,14.38516176]
[1770722475692,3.93898642,84.229,84.194,3.68436176]
[1770722477293,3.93898642,84.199,84.151,3.68436176]
[1770722477698,3.93898642,84.211,84.17,10.7035]
[1770722477993,7.6306996,84.21,84.168,3.68436176]
[1770722478192,3.93898642,84.209,84.168,3.68436176]
[1770722478390,3.93898642,84.209,84.172,3.68436176]
[1770722478896,3.93898642,84.209,84.174,3.68436176]
[1770722479194,3.93898642,84.221,84.174,3.68436176]
[1770722479800,4.01966792,84.233,84.191,3.85927181]
[1770722480995,4.01966792,84.233,84.19,10.7009]
[1770722480996,3.69171318,84.24,84.195,3.89984004]
[1770722481202,4.06010489,84.257,84.211,3.89984004]
[1770722481497,7.75181807,84.27,84.211,3.89984004]
[1770722481701,4.06010489,84.269,84.211,3.89984004]
[1770722482203,10.6925,84.257,84.211,3.89984004]
[1770722484497,10.6925,84.257,84.191,94.78]
[1770722484498,10.6902,84.276,84.231,3.89984004]
[1770722485102,4.06010489,84.273,84.231,3.89984004]
[1770722486003,14.75120489,84.268,84.231,3.89984004]
[1770722486302,4.06010489,84.259,84.204,3.89984004]
[1770722487206,4.06010489,84.249,84.191,3.89984004]
[1770722488802,4.06010489,84.247,84.197,10.7]
[1770722490004,4.06010489,84.247,84.201,3.89984004]
[1770722491011,105.86630383,84.277,84.211,3.89984004]
[1770722491012,10.6926,84.257,84.211,3.89984004]
[1770722491209,4.06010489,84.256,84.211,3.89984004]
[1770722492011,10.6913,84.267,84.221,3.89984004]
[1770722493710,4.06010489,84.264,84.218,10.6974]
[1770722494014,4.06010489,84.262,84.218,10.6974]
[1770722494216,9.12737722,84.261,84.218,10.6974]
[1770722494513,4.06010489,84.262,84.218,10.6974]
[1770722494712,19.81995697,84.261,84.218,10.6974]
[1770722494913,10.6921,84.261,84.218,10.6974]
[1770722495315,9.13414169,84.26,84.218,10.6974]
[1770722495514,9.13414169,84.259,84.218,10.6974]
[1770722495722,10.6921,84.261,84.218,10.6974]
[1770722495919,9.13443342,84.26,84.218,14.59724004]
[1770722496117,14.75220489,84.261,84.21,3.69252699]
[1770722496118,9.13443342,84.259,84.222,3.89984004]
[1770722496324,4.06010489,84.276,84.222,3.89984004]
[1770722496619,4.06010489,84.274,84.222,3.89984004]
[1770722496818,9.1362862,84.273,84.222,3.89984004]
[1770722497018,9.1362862,84.272,84.222,3.89984004]
[1770722497214,9.1362862,84.271,84.222,3.89984004]
[1770722497415,4.06010489,84.274,84.222,3.89984004]
[1770722497416,9.1362862,84.27,84.222,3.89984004]
[1770722497723,9.1362862,84.269,84.229,10.696]
[1770722497918,14.75050489,84.273,84.229,10.696]
[1770722498121,9.13630345,84.272,84.229,10.696]
[1770722498317,9.13630345,84.271,84.231,3.89984004]
[1770722498520,9.13630345,84.27,84.233,3.89984004]
[1770722498718,14.75050489,84.273,84.233,3.89984004]
[1770722502326,4.06010489,84.259,84.207,3.89984004]
[1770722502526,4.06010489,84.257,84.207,3.89984004]
[1770722502927,4.06010489,84.253,84.209,10.6985]
[1770722504826,4.06010489,84.251,84.209,10.6985]
[1770722506129,4.06010489,84.251,84.214,10.6978]
[1770722506732,94.76,84.284,84.186,94.76]
[1770722506733,4.06010489,84.274,84.23,3.69252699]
[1770722506922,9.10755026,84.273,84.23,7.59236703]
[1770722507233,9.10755026,84.272,84.231,3.89984004]
[1770722507431,4.06010489,84.274,84.231,3.89984004]
[1770722507632,9.10700089,84.273,84.231,3.89984004]
[1770722507927,9.10700089,84.272,84.231,3.89984004]
[1770722508123,4.06010489,84.274,84.231,3.89984004]
[1770722508327,9.10700089,84.273,84.231,3.89984004]
[1770722508528,4.06010489,84.274,84.231,3.89984004]
[1770722508729,10.6907,84.271,84.232,10.6955]
[1770722509230,4.06010489,84.274,84.232,14.59534004]
[1770722509532,10.69,84.277,84.237,3.89984004]
[1770722510729,10.69,84.277,84.239,10.6947]
[1770722512730,10.69,84.277,84.237,3.89984004]
[1770722515031,4.07382395,84.267,84.226,10.6964]
[1770722515239,4.07382395,84.267,84.222,3.86060849]
[1770722515434,4.07382395,84.267,84.231,3.86060849]
[1770722515634,9.11081276,84.278,84.231,3.86060849]
[1770722515941,9.11081276,84.277,84.231,3.86060849]
[1770722516139,9.11081276,84.276,84.231,3.86060849]
[1770722516434,4.07382395,84.278,84.231,3.86060849]
[1770722516643,4.07382395,84.276,84.231,3.86060849]
[1770722516837,14.76392395,84.276,84.234,10.6953]
[1770722518140,10.6905,84.273,84.234,10.6953]
[1770722519230,10.6905,84.273,84.234,14.55590849]
[1770722520440,14.76432395,84.273,84.234,14.55590849]
[1770722520642,4.07382395,84.272,84.234,14.55590849]
[1770722521340,4.07382395,84.272,84.23,3.69252699]
[1770722521341,4.07382395,84.272,84.238,10.6949]
[1770722522237,4.07382395,84.296,84.246,3.86060849]
[1770722522543,4.07382395,84.279,84.234,3.86060849]
[1770722522732,4.07382395,84.277,84.234,3.86060849]
[1770722522930,4.07382395,84.272,84.229,10.696]
[1770722523136,4.07382395,84.269,84.222,3.86060849]
[1770722523333,3.69252699,84.25,84.2,3.69252699]
[1770722523637,4.07382395,84.249,84.198,3.86060849]
[1770722524232,14.76762395,84.247,84.204,10.6992]
[1770722524434,4.07382395,84.246,84.204,10.6992]
[1770722524638,4.07382395,84.244,84.204,10.6992]
[1770722525239,4.07382395,84.242,84.204,10.6992]
[1770722525747,4.07382395,84.242,84.208,10.6986]
[1770722527637,4.07382395,84.242,84.205,3.86060849]
[1770722529544,4.07382395,84.255,84.216,3.86060849]
[1770722529738,4.07382395,84.255,84.215,10.6978]
[1770722529944,4.07382395,84.253,84.201,3.86060849]
[1770722530148,4.07382395,84.251,84.201,3.86060849]
[1770722530345,13.20644136,84.25,84.201,3.86060849]
[1770722530549,9.13261741,84.249,84.201,3.86060849]
[1770722530737,9.13261741,84.248,84.206,3.86060849]
[1770722530943,4.07382395,84.25,84.206,3.86060849]
[1770722531141,9.13225353,84.249,84.206,3.86060849]
[1770722531345,9.13225353,84.248,84.206,3.86060849]
[1770722531652,4.07382395,84.25,84.206,3.86060849]
[1770722531846,9.13305581,84.249,84.209,10.6985]
[1770722532053,9.13305581,84.248,84.209,10.6985]
[1770722532252,4.07382395,84.25,84.209,10.6985]
[1770722532454,9.13332032,84.249,84.209,10.6985]
[1770722532751,9.13332032,84.248,84.209,10.6985]
[1770722532953,4.07382395,84.243,84.198,10.6999]
[1770722533154,4.07382395,84.241,84.199,3.86060849]
[1770722533857,4.07382395,84.24,84.199,3.86060849]
[1770722535853,10.6945,84.241,84.201,3.86060849]
[1770722536053,4.07382395,84.252,84.201,3.86060849]
[1770722536249,9.1104172,84.251,84.201,3.86060849]
[1770722536453,9.1104172,84.25,84.201,3.86060849]
[1770722536653,9.1104172,84.249,84.201,3.86060849]
[1770722536854,9.1104172,84.248,84.201,3.86060849]
[1770722537049,4.07382395,84.252,84.201,3.86060849]
[1770722537250,9.11069146,84.251,84.201,3.86060849]
[1770722537450,9.11069146,84.25,84.209,14.55910849]
[1770722537652,9.11069146,84.249,84.21,3.86060849]
[1770722537858,4.07382395,84.265,84.211,3.86060849]
[1770722538058,4.07382395,84.263,84.211,3.86060849]
[1770722538354,4.07382395,84.261,84.211,3.86060849]
[1770722538550,4.07382395,84.259,84.211,3.86060849]
[1770722538743,9.11055935,84.258,84.219,10.6972]
[1770722538947,9.11055935,84.257,84.219,10.6972]
[1770722539157,13.1843833,84.256,84.219,10.6972]
[1770722539356,9.11055935,84.255,84.219,10.6972]
[1770722539557,9.11055935,84.254,84.219,10.6972]
[1770722539758,9.11055935,84.253,84.219,10.6972]
[1770722539957,4.07382395,84.256,84.219,10.6972]
[1770722540157,9.11059401,84.255,84.219,10.6972]
[1770722540359,9.11059401,84.254,84.219,10.6972]
[1770722540552,9.11059401,84.253,84.219,10.6972]
[1770722540751,4.07382395,84.256,84.219,10.6972]
[1770722540953,9.1105028,84.255,84.219,10.6972]
[1770722541158,9.1105028,84.254,84.219,10.6972]